Cogmind - Beta 10.2 @@@ ROGUE MODE // 2021.05.07 @ 23:06:43 Player: ChromeKnight Result: Destroyed by S-10 Pest with Light Assault Rifle Performance ------------- Evolutions (1) 500 Regions Visited (4) 800 Robots Destroyed (24) 120 Value Destroyed (696) 696 Prototype IDs (1) 20 Alien Tech Used (0) 0 Bonus (25) 25 TOTAL SCORE: 2161 Bonus ------- Follower Combat Kills 25 Cogmind --------- Core Integrity 0/400 Matter 282/300 Energy 273/275 System Corruption 0% Temperature Cool (0) Movement Rolling (90) Ox1 Location -9/Storage Parts ------- > --- POWER (2) -------- Ion Engine Light Ion Engine > --- PROPULSION (2) --- Wheel Wheel > --- UTILITY (3) ------ Cooling System Large Storage Unit Armor Integrity Analyzer > --- WEAPON (2) ------- Improved Heavy Laser > --- INVENTORY (10) --- Aluminum Leg Hover Unit VTOL Module Heat Sink Plasma Flamer Peak State ------------ > --- POWER ------------ Ion Engine Light Ion Engine > --- PROPULSION ------- Wheel Wheel > --- UTILITY ---------- Cooling System Large Storage Unit Armor Integrity Analyzer > --- WEAPON ----------- Improved Heavy Laser > --- INVENTORY -------- Aluminum Leg Hover Unit VTOL Module Heat Sink Plasma Flamer [Rating: 16] Favorites ----------- Power Light Nuclear Core Engine Ion Engine Power Core Light Nuclear Core Propulsion Aluminum Leg Treads Light Treads Leg Aluminum Leg Wheel Wheel Utility Large Storage Unit Device Cooling System Storage Large Storage Unit Processor Armor Integrity Analyzer Weapon Light Assault Rifle Energy Gun Improved Heavy Laser Ballistic Gun Light Assault Rifle Impact Weapon Mace Build | -11 -10 -10 -9 -9 ------- Run | Scr Mat Min Mat Sto Slots Evolved 2 | . . . 2 . Power 1 | . . . 1 . Propulsion . | . . . . . Utility 1 | . . . 1 . Weapon . | . . . . . Parts Attached 28 | 6 2 3 11 6 Power 5 | 1 . 1 1 2 Engine 4 | 1 . . 1 2 Core 1 | . . 1 . . Reactor . | . . . . . Propulsion 11 | 2 1 1 5 2 Treads 2 | . . . 2 . Leg 7 | 2 1 1 3 . Wheel 2 | . . . . 2 Hover . | . . . . . Flight . | . . . . . Utility 6 | 1 1 . 3 1 Device 2 | . . . 1 1 Storage 3 | 1 1 . 1 . Processor 1 | . . . 1 . Hackware . | . . . . . Protection . | . . . . . Artifact . | . . . . . Weapon 6 | 2 . 1 2 1 Energy Gun 2 | . . . 1 1 Energy Cannon . | . . . . . Ballistic Gun 3 | 2 . 1 . . Ballistic Cannon . | . . . . . Launcher . | . . . . . Special Weapon . | . . . . . Impact Weapon 1 | . . . 1 . Slashing Weapon . | . . . . . Piercing Weapon . | . . . . . Special Melee Weapon . | . . . . . Unidentified Prototypes 1 | . . . . 1 Parts Lost 11 | . . . 8 3 Power 2 | . . . 1 1 Propulsion 6 | . . . 4 2 Utility . | . . . . . Weapon 3 | . . . 3 . Highest Loss Streak 6 | . . . 6 3 Average Slot Usage (%) 77 | . 85 85 67 71 Engine 4 | . 14 . 4 14 Core 8 | . . 13 4 . Treads 4 | . . . 7 12 Leg 19 | . 28 28 11 . Device 2 | . . . 3 11 Storage 12 | . 14 14 11 11 Processor 4 | . . . 9 11 Energy Gun 1 | . . . . 10 Ballistic Gun 18 | . 28 28 9 . Impact Weapon 1 | . . . 5 . Naked Turns . | . . . . . Heaviest Build 31 | 10 22 24 25 31 Greatest Support 40 | 20 20 20 40 40 Greatest Overweight (x) 10 | . 1 1 7 10 Average Overweight (x) 1 | . . 1 . 3 Largest Inventory Capacity 14 | 6 12 10 14 10 Average Capacity 9 | 5 9 10 10 10 Most Carried 5 | . 1 2 5 5 Average Carried 2 | . . 1 3 4 Final Capacity 10 | 6 10 10 10 10 Final Carried 5 | . 1 2 4 5 Class Distribution -------------------- 54% | Mutant 45% | Scavenger-Mutant Dominant Class ---------------- Mutant | -10/Materials Mutant | -10/Mines Scavenger-Mutant | -9/Materials Mutant | -9/Storage Resources | -11 -10 -10 -9 -9 ----------- Run | Scr Mat Min Mat Sto Matter Collected 563 | 203 52 171 110 27 Remotely . | . . . . . Salvage Created 860 | . 52 177 418 213 Parts 38 | . 1 10 13 14 Haulers Intercepted . | . . . . . Recyclers Shooed 1 | . . . . 1 Parts Field Recycled . | . . . . . Retrieved Matter . | . . . . . Parts Self-Destructed . | . . . . . Prevented . | . . . . . Kills | -11 -10 -10 -9 -9 ------- Run | Scr Mat Min Mat Sto Combat Hostiles Destroyed 20 | . 1 5 8 6 Melee 4 | . . . 4 . Guns 13 | . 1 5 2 5 AOE 1 | . . . . 1 Classes Destroyed 7 | . 1 1 3 2 Worker 1 | . . . 1 . Builder 1 | . . . . 1 Tunneler 1 | . . . 1 . Recycler 1 | . . . . 1 Swarmer 5 | . . 2 . 3 Grunt 13 | . 1 3 6 3 Sentry 2 | . . . 2 . Best Kill Streak 7 | . 1 2 2 7 Combat Bots Only 6 | . 1 2 2 6 Max Kills in Single Turn 1 | . 1 1 1 1 Gunslinging . | . . . . . Exploded 1 | . . . . 1 Melee 1 | . . . 1 . Uniques/NPCs Destroyed . | . . . . . Combat | -11 -10 -10 -9 -9 -------- Run | Scr Mat Min Mat Sto Damage Taken 1685 | . 155 172 1142 216 Core 464 | . 29 31 362 42 Absorbed by Shields . | . . . . . Core Remaining (%) 88 | 100 . 76 . . Volleys Fired 68 | . 9 20 20 19 Largest 2 | . 2 2 2 1 Hottest 85 | . 40 40 85 65 Shots Fired 110 | . 18 40 33 19 Gun 110 | . 18 40 33 19 Cannon . | . . . . . Launcher . | . . . . . Special . | . . . . . Kinetic 88 | . 18 40 30 . Thermal 22 | . . . 3 19 Explosive . | . . . . . Electromagnetic . | . . . . . Robot Hit Streak 9 | . 6 9 5 7 Robot Miss Streak 2 | . 2 2 2 2 Penetration Max . | . . . . . Secondary Targets 1 | . . 1 . . Max Gunslinging Chain 1 | . . 1 . . Shots Hit Robots 120 | . 13 31 63 13 Core Hits 43 | . 4 15 15 9 Critical Hits 2 | . 1 1 . . Critical Kills . | . . . . . Critical Parts Destroyed 2 | . 1 1 . . Melee Attacks 45 | . . . 45 . Impact 45 | . . . 45 . Slashing . | . . . . . Piercing . | . . . . . Sneak Attacks 2 | . . . 2 . Combat Hostiles . | . . . . . Follow-up Attacks . | . . . . . Damage Inflicted 2065 | . 136 315 1096 518 Guns 934 | . 136 315 201 282 Cannons . | . . . . . Explosions 236 | . . . . 236 Melee 882 | . . . 882 . Ramming 13 | . . . 13 . Kinetic 638 | . 136 315 187 . Thermal 296 | . . . 14 282 Explosive 236 | . . . . 236 Electromagnetic . | . . . . . Impact 882 | . . . 882 . Slashing . | . . . . . Piercing . | . . . . . Highest Corruption . | . . . . . Average Corruption . | . . . . . Corruption Purged . | . . . . . Overload Shots . | . . . . . Overflow Damage 106 | . . . 99 7 Projectiles . | . . . . . Explosions 7 | . . . . 7 Melee 99 | . . . 99 . Knockbacks 2 | . . . 2 . Impact 2 | . . . 2 . Kinetic . | . . . . . Secondary . | . . . . . Self-Inflicted Damage 52 | . . . 4 48 Shots 1 | . . . . 1 Rammed 3 | . . . 3 . Targets Rammed 4 | . . . 4 . Kicked 1 | . . . 1 . Crushed . | . . . . . Highest Temperature 96 | . 18 14 96 . Average Temperature 17 | . 10 5 32 . Received Heat Transfer 699 | . 90 78 495 36 Siege Activations . | . . . . . Robots Corrupted . | . . . . . Combat Hostiles . | . . . . . Parts Fried 7 | . . . 7 . Impact Corruptions 7 | . . . 7 . Robots Melted . | . . . . . Combat Hostiles . | . . . . . Parts Melted 1 | . . . . 1 Heat Transferred 444 | . . . 37 407 Parts Sabotaged . | . . . . . Parts Stolen . | . . . . . Parts Stripped . | . . . . . Power Chain Reactions . | . . . . . Missiles Intercepted . | . . . . . Alert | -11 -10 -10 -9 -9 ------- Run | Scr Mat Min Mat Sto Peak Influence 216 | . 60 133 105 216 Initial 44 | . . 23 7 44 Average 61 | . 39 63 37 124 Maximum Alert Level 1 | . . . . 1 Low Security (%) 94 | 100 100 100 100 57 Level 1 5 | . . . . 42 Level 2 . | . . . . . Level 3 . | . . . . . Level 4 . | . . . . . Level 5 . | . . . . . High Security . | . . . . . Max Security . | . . . . . Squads Dispatched 4 | . 2 . 1 1 Investigation 1 | . . . . 1 Extermination . | . . . . . Reinforcement 3 | . 2 . 1 . Assault . | . . . . . Garrison . | . . . . . Intercept . | . . . . . Construction Impeded . | . . . . . Haulers Reinforced . | . . . . . Stealth | -11 -10 -10 -9 -9 --------- Run | Scr Mat Min Mat Sto Distress Signals . | . . . . . Communications Jammed . | . . . . . Distress Signals . | . . . . . Times Spotted 34 | . 3 10 14 7 Peak Tracking Total 6 | . 2 3 4 6 Tactical Retreats 4 | . 1 3 . . Traps | -11 -10 -10 -9 -9 ------- Run | Scr Mat Min Mat Sto Traps Triggered . | . . . . . Indirectly . | . . . . . Trap Hack Attempts . | . . . . . Triggered . | . . . . . Disarmed . | . . . . . Reprogrammed . | . . . . . Reused . | . . . . . Traps Extracted . | . . . . . Installed . | . . . . . Triggered . | . . . . . Machines | -11 -10 -10 -9 -9 ---------- Run | Scr Mat Min Mat Sto Machines Disabled 3 | . . . . 3 Max in Single Turn 2 | . . . . 2 Machines Sabotaged . | . . . . . Garrisons Compromised . | . . . . . Overloaded Fab Kills . | . . . . . Fab Network Shutdowns . | . . . . . Hacking | -11 -10 -10 -9 -9 --------- Run | Scr Mat Min Mat Sto Machines Accessed 2 | . . . 1 1 Terminals 2 | . . . 1 1 Fabricators . | . . . . . Repair Stations . | . . . . . Recycling Units . | . . . . . Scanalyzers . | . . . . . Garrison Access . | . . . . . Total Hacks 5 | . . . 2 3 Successful 2 | . . . 1 1 Failed 3 | . . . 1 2 Catastrophic 1 | . . . . 1 Database Lockouts . | . . . . . Manual . | . . . . . Terminals 5 | . . . 2 3 Fabricators . | . . . . . Repair Stations . | . . . . . Recycling Units . | . . . . . Scanalyzers . | . . . . . Garrison Access . | . . . . . Terminal Hacks 2 | . . . 1 1 Robot Analysis 1 | . . . 1 . Open Door 1 | . . . . 1 Fabricator Hacks . | . . . . . Repair Station Hacks . | . . . . . Recycling Unit Hacks . | . . . . . Scanalyzer . | . . . . . Garrison Access Hacks . | . . . . . Unauthorized Hacks . | . . . . . Terminals . | . . . . . Fabricators . | . . . . . Repair Stations . | . . . . . Recycling Units . | . . . . . Scanalyzers . | . . . . . Garrison Access . | . . . . . Data Cores Recovered . | . . . . . Used . | . . . . . Hacking Detections 2 | . . . 1 1 Full Trace Events 1 | . . . . 1 Feedback Events . | . . . . . Feedback Blocked . | . . . . . Robot Schematics Acquired . | . . . . . Robots Built . | . . . . . Matter . | . . . . . Time . | . . . . . Total Robot Build Rating . | . . . . . Part Schematics Acquired . | . . . . . Parts Built . | . . . . . Matter . | . . . . . Time . | . . . . . Total Part Build Rating . | . . . . . Parts Repaired . | . . . . . Time . | . . . . . Parts Recycled . | . . . . . Recycled Matter . | . . . . . Retrieved Matter . | . . . . . Retrieved Components . | . . . . . Parts Scanalyzed . | . . . . . Part Schematics Acquired . | . . . . . Parts Damaged . | . . . . . Bothacking | -11 -10 -10 -9 -9 ------------ Run | Scr Mat Min Mat Sto Used RIF Installer . | . . . . . Robots Hacked . | . . . . . Non-combat . | . . . . . Combat . | . . . . . Robot Hacks Applied . | . . . . . Relay Couplers Released . | . . . . . Robots Rewired . | . . . . . Allies Hacked . | . . . . . Hacks Repelled . | . . . . . Allies | -11 -10 -10 -9 -9 -------- Run | Scr Mat Min Mat Sto Total Allies 1 | . . 1 . . Largest Group 1 | . . 1 1 . Highest-Rated Group 31 | . . 31 31 . Highest-Rated Ally 31 | . . 31 31 . Total Orders . | . . . . . Ally Attacks 1 | . . 1 . . Total Damage 21 | . . 21 . . Kills 1 | . . 1 . . Allies Corrupted . | . . . . . Allies Melted . | . . . . . Intel | -11 -10 -10 -9 -9 ------- Run | Scr Mat Min Mat Sto Robot Analysis Total 1 | . . . 1 . Derelict Logs Recovered 2 | . . 2 . . Drone Launches . | . . . . . Drone Recoveries . | . . . . . Exploration | -11 -10 -10 -9 -9 ------------- Run | Scr Mat Min Mat Sto Turns Passed 1959 | 45 111 968 563 272 Spaces Moved 979 | 35 54 603 237 50 Core 29 | 7 . . 6 16 Treads 114 | . . . 85 29 Legs 831 | 28 54 603 146 . Wheels 5 | . . . . 5 Hover . | . . . . . Flight . | . . . . . Fastest Speed 50 | 50 120 150 120 90 Average Speed 156 | 106 145 150 157 275 Slowest Speed 550 | 120 150 150 400 550 Overloaded Moves . | . . . . . Propulsion Burnouts . | . . . . . Robots Hopped . | . . . . . Cave-ins Triggered . | . . . . . Exploration Rate (%) 29 | 3 13 99 24 6 Regions Visited 4 Branch Regions 2 Pre-discovered Areas . | . . . . . Known Exits Taken 2 | . . 1 1 . Unknown Exits Taken 2 | 1 1 . . . Scrap Searched 3 | . . 3 . . Spaces Dug . | . . . . . Terrain Destroyed 38 | . . . . 38 Melee . | . . . . . Projectile 6 | . . . . 6 AOE 32 | . . . . 32 Terrain Rammed . | . . . . . Walls Destroyed . | . . . . . Machines Disabled . | . . . . . Actions | -11 -10 -10 -9 -9 --------- Run | Scr Mat Min Mat Sto Total 1227 | 40 71 631 322 163 Wait 95 | . 4 1 3 87 Move 975 | 34 53 602 236 50 Hop . | . . . . . Pick Up 4 | . 1 1 2 . Fast Attach 22 | 6 1 1 9 5 Attach 1 | . . . 1 . Detach . | . . . . . Swap 5 | . 1 2 1 1 Drop 7 | . 2 3 1 1 Fire 68 | . 9 20 20 19 Melee 45 | . . . 45 . Ram 1 | . . . 1 . Kick 3 | . . . 3 . Crush . | . . . . . Escape Stasis . | . . . . . Rewire 1 | . . 1 . . Trap . | . . . . . Miscellaneous . | . . . . . Route ------- -11/Scrapyard -10/Materials -10/Mines (discovered 2 exits: *Mat x2) -9/Materials (discovered 2 exits: Mat / *Sto) -9/Storage History --------- Turn | Location | Event 5 | -11/Scrapyard | Discovered new exit (range 15) 46 | -11/Scrapyard | Entered Materials 136 | -10/Materials | Discovered new exit (range 7) 157 | -10/Materials | Entered Mines 190 | -10/Mines | Discovered new exit (range 13) 300 | -10/Mines | Build established: Mutant 572 | -10/Mines | Learned 8 Materials zone layouts 626 | -10/Mines | Identified exit to Materials 876 | -10/Mines | Received a Mining Laser from a helpful Derelict 1017 | -10/Mines | A weapon hastily lodged in a ceiling crevice suddenly fell to the ground 1026 | -10/Mines | Build established: Scavenger-Mutant 1125 | -10/Mines | Entered Materials 1125 | -9/Materials | Accompanied by 1 ally 1125 | -9/Materials | Evolved 2 slots: Power x1, Utility x1 1126 | -9/Materials | Identified exit to Storage 1126 | -9/Materials | Identified exit to Materials 1419 | -9/Materials | Lost 6 parts (1p2n3w) 1431 | -9/Materials | Core integrity fell below 50% 1575 | -9/Materials | Core integrity fell below 20% 1688 | -9/Materials | Entered Storage 1883 | -9/Storage | Lost 3 parts (1p2n) 1960 | -9/Storage | Destroyed by S-10 Pest with Light Assault Rifle Last Messages --------------- 01852_ R-06 Scavenger destroyed. 01856_ R-06 Scavenger collects Aluminum Leg. 01858_ Acquired Ion Engine. 01859_ R-06 Scavenger collects Tractor Beam. 01863_ R-06 Scavenger collects Lgt. Ion Engine. 01864_ Acquired Lgt. Ion Engine. 01873_ The unstable cave ceiling collapses. 01899_ U-05 Engineer builds a Wall. 01907_ The unstable cave ceiling collapses. 01910_ U-05 Engineer builds a Door. 01914_ U-05 Engineer builds a Wall. 01918_ U-05 Engineer destroyed. 01942_ Acquired 25 matter. 01947_ U-05 Engineer lays Concrete. 01950_ U-05 Engineer builds a Wall. 01953_ Acquired Wheel. 01954_ U-05 Engineer builds a Wall. 01954_ Acquired 2 matter. 01956_ Acquired Wheel. 01959_ U-05 Engineer builds a Wall. Map ----- +----------------------------------------------------+ | | | | | | | | | | | | | | | | | | | ?????????????????????????????????? | | ?????????????????????????????????? | | ?????????????????????????????????? | | ?????????????????????????????????? | | ?????????????????????????????????? | | ?????????????????????????????????? | | ?????????????????????????????###?? | | ??????????????????????????#### ##? | | ????????????????????????### # ## | | ??????????????????????#### # | | ??????????????????????# u | | ??????????????????????# # | | ??????????????????????# # # | | ????????????????????### u# # | | ??????????????????###T# # | | ??????????????????# + ! + | | ??????????????????##### |@#% # | | ??????????????????????# # % % | | ??????????????????????# | | ??????????????????????#r | | ??????????????????????# [# | | ??????????????????????# ; % | | ??????????????????????# ;# # | | ?????????????????????## ######## | | ?????????????????????## #??????? | | ??????????????????????# #??????? | | ??????????????????????# #??????? | | ??????????????????????# #??????? | | ??????????????????????# #??????? | | ??????????????????????# #??????? | | ?????????????????????? ??????? | | ?????????????????????? ??????? | | ?????????????????????? ??????? | | ????????????????????? ??????? | | ?????????????????????# ???????? | | ?????????????????????###+#???????? | | ?????????????????????????????????? | | ?????????????????????????????????? | | ?????????????????????????????????? | | ?????????????????????????????????? | | ?????????????????????????????????? | +----------------------------------------------------+ Best States ------------- Heat Dissipation 50 Energy Generation 15 Energy Capacity 275 Matter Stores 300 Matter Capacity 300 Sight Range 16 Terrain Scan Density 10 Evasion (%) 42 Armor Integrity Analysis 33 Recoil Reduction 2 Item Schematics ----------------- None Robot Schematics ------------------ None Fabricated ------------ Nothing Alien Tech Used ----------------- None Achievements -------------- None Challenges ------------ None Game ------ Seed FactoryThermalReconfigurator Manual? 0 Play Time 00:08:32 Cumulative 190.7 hours Start 2021.05.07 @ 22:59:19 End 2021.05.07 @ 23:06:43 Sessions 1 Manual Loads 0 Difficulty Rogue Special Mode None Game No. 378 Rogue 223 Adventurer 148 Explorer 7 Win Type - Total 3 Types 3/0/0/0/0/0/0/0/0 Lore% 72 Gallery% 83 Achievement% 60 Wizard Run 0 Options --------- ASCII 0 Keyboard 0 Movement Numpad Keybinds 0 Fullscreen 1 Font 18/CogNarrow Map View 76x50 Tactical HUD 1 Map Filters NONE Filters NONE Steam 1 RUN: 719ca836-e30a-4af3-a3a5-02033f97c7a4